[Event "90th GER-ch 2019"]
[Site "Magdeburg"]
[Date "2019.05.26"]
[Round "1.15"]
[White "Krastev, Alexander"]
[Black "Guenther, Andreas"]
[Result "1-0"]
[ECO "A04"]
[WhiteElo "2344"]
[BlackElo "2121"]
[Annotator "NA RC"]
[PlyCount "127"]
[EventDate "2019.05.26"]
[EventType "tourn"]
[EventCountry "GER"]
[SourceTitle "playchess.com"]
[Source "ChessBase"]
[SourceQuality "1"]
[TimeControl "40/5400+30:1800+30"]

1. Nf3 {[%emt 0:00:00]} f5 {[%emt 0:00:00]} 2. d3 {[%emt 0:00:00]} d6 {[%emt 0:00:56]} 3. e4 {[%emt 0:00:21]} e5 {[%emt 0:00:15]} 4. Nc3 {[%emt 0:08:22]} c5 {[%emt 0:02:12]} 5. g3 {[%emt 0:16:31]} Nc6 {[%emt 0:02:34]} 6. Bg2 {[%emt 0:06:42]} Be7 {[%emt 0:01:21]} 7. Nd5 {[%emt 0:14:10]} Nf6 {[%emt 0:03:05]} 8. c3 {[%emt 0:01:32]} fxe4 {[%emt 0:07:14]} 9. Nxf6+ {[%emt 0:05:08]} Bxf6 {[%emt 0:00:29]} 10. dxe4 {[%emt 0:00:05]} Be6 {[%emt 0:00:54]} 11. Ng5 {[%emt 0:03:33]} Bxg5 {[%emt 0:05:39]} 12. Qh5+ {[%emt 0:00:58]} Bf7 {[%emt 0:01:40]} 13. Qxg5 {[%emt 0:00:06]} Qxg5 {[%emt 0:01:02]} 14. Bxg5 {[%emt 0:00:05]} h6 {[%emt 0:00:15]} 15. Be3 {[%emt 0:00:20]} O-O-O {[%emt 0:05:58]} 16. O-O {[%emt 0:01:12]} Rhf8 {[%emt 0:04:48]} 17. f4 {[%emt 0:05:06]} Be6 {[%emt 0:06:52]} 18. f5 {[%emt 0:01:36]} Bc4 {[%emt 0:01:19]} 19. Rfd1 {[%emt 0:01:49]} Kc7 {[%emt 0:00:50]} 20. Rd2 {[%emt 0:01:07]} Ne7 {[%emt 0:05:41]} 21. g4 {[%emt 0:02:28]} b6 {[%emt 0:02:55]} 22. b3 {[%emt 0:05:40]} Ba6 {[%emt 0:03:30]} 23. h4 {[%emt 0:02:10]} Bb7 {[%emt 0:05:11]} 24. Rad1 {[%emt 0:01:08]} Rd7 {[%emt 0:06:43]} 25. Bf2 {[%emt 0:03:14]} g6 {[%emt 0:06:28]} 26. Bg3 {[%emt 0:03:16]} gxf5 {[%emt 0:02:51]} 27. gxf5 {[%emt 0:02:28]} Rdd8 {[%emt 0:02:38]} 28. Kf2 {[%emt 0:13:37]} Rg8 {[%emt 0:06:44]} 29. Bf3 {[%emt 0:01:03]} Nc6 {[%emt 0:02:51]} 30. h5 {[%emt 0:00:25]} b5 {[%emt 0:01:04]} 31. Bh4 {[%emt 0:00:37]} Rd7 {[%emt 0:00:18]} 32. Ke3 {[%emt 0:00:25]} b4 {[%emt 0:00:18]} 33. cxb4 {[%emt 0:00:06]} cxb4 {[%emt 0:00:13]} 34. Rg2 {[%emt 0:00:45]} Rxg2 {[%emt 0:00:54]} 35. Bxg2 {[%emt 0:00:03]} Nd4 {[%emt 0:00:22]} 36. Bh3 {[%emt 0:00:37]} Rf7 {[%emt 0:02:39]} 37. f6 {[%emt 0:00:36]} Bc6 {[%emt 0:01:27]} 38. Rg1 {[%emt 0:00:23]} Bd7 {[%emt 0:03:57]} 39. Rg7 {[%emt 0:00:14]} Be8 {[%emt 0:00:09]} 40. Rg6 {[%emt 0:00:23]} Rh7 {[%emt 0:00:39]} 41. Bg4 {[%emt 0:04:07]} Bf7 {[%emt 0:02:16]} 42. Kd3 {[%emt 0:04:14]} Ne6 {[%emt 0:03:55]} 43. Bxe6 {[%emt 0:02:46]} Bxe6 {[%emt 0:00:02]} 44. Bf2 {[%emt 0:06:02]} a5 {[%emt 0:06:23]} 45. Be3 {[%emt 0:02:06]} Bf7 {[%emt 0:03:01]} 46. Rg7 {[%emt 0:01:20]} Rxg7 47. fxg7 {[%emt 0:00:07]} Kc6 {[%emt 0:05:00]} 48. Bxh6 {[%emt 0:01:17]} a4 {[%emt 0:02:29]} 49. Kc2 {[%emt 0:04:07]} d5 {[%emt 0:04:12]} 50. exd5+ {[%emt 0:01:44]} Bxd5 {[%emt 0:00:45]} 51. Bd2 {[%emt 0:00:36]} Kb5 {[%emt 0:00:12]} 52. h6 {[%emt 0:00:17]} Bg8 {[%emt 0:00:02]} 53. Kd3 {[%emt 0:00:22]} axb3 {[%emt 0:00:45]} 54. axb3 {[%emt 0:00:05]} Bh7+ {[%emt 0:00:08]} 55. Ke3 {[%emt 0:00:05]} Kc5 {[%emt 0:00:45]} 56. Kf3 {[%emt 0:00:56]} Kd4 {[%emt 0:01:22]} 57. Bxb4 {[%emt 0:00:10]} e4+ {[%emt 0:00:27]} 58. Kf4 {[%emt 0:00:11]} e3 {[%emt 0:00:20]} 59. Kg5 {[%emt 0:00:12]} Ke5 {[%emt 0:00:37]} 60. Bc3+ {[%emt 0:00:33]} Ke6 {[%emt 0:00:04]} 61. b4 {[%emt 0:00:42]} Kf7 {[%emt 0:00:18]} 62. b5 {[%emt 0:00:05]} Kg8 {[%emt 0:00:22]} 63. b6 {[%emt 0:00:22]} Be4 {[%emt 0:00:04]} 64. Kf4 {[%emt 0:00:03]} 1-0

[Event "90th GER-ch 2019"]
[Site "Magdeburg"]
[Date "2019.05.26"]
[Round "1.16"]
[White "Nosek, Reinhard"]
[Black "Svane, Frederik"]
[Result "0-1"]
[ECO "A45"]
[WhiteElo "1913"]
[BlackElo "2342"]
[Annotator "NA"]
[PlyCount "80"]
[EventDate "2019.05.26"]
[EventType "tourn"]
[EventCountry "GER"]
[SourceTitle "playchess.com"]
[Source "ChessBase"]
[SourceQuality "1"]
[TimeControl "40/5400+30:1800+30"]

1. d4 {[%emt 0:00:00]} Nf6 {[%emt 0:00:00]} 2. Bg5 {[%emt 0:00:14]} e6 {[%emt 0:02:38]} 3. Nd2 {[%emt 0:00:12]} h6 {[%emt 0:00:19]} 4. Bh4 {[%emt 0:01:16]} c5 {[%emt 0:01:35]} 5. e3 {[%emt 0:01:22]} d5 {[%emt 0:01:03]} 6. Ngf3 {[%emt 0:00:23]} Nc6 {[%emt 0:00:13]} 7. c3 {[%emt 0:01:07]} Qb6 {[%emt 0:13:22]} 8. Qb3 {[%emt 0:14:09]} Bd7 {[%emt 0:19:11]} 9. Bg3 {[%emt 0:00:27]} Qxb3 {[%emt 0:01:21]} 10. axb3 Nh5 11. dxc5 {[%emt 0:05:01]} Nxg3 {[%emt 0:02:03]} 12. hxg3 {[%emt 0:00:41]} Bxc5 {[%emt 0:00:09]} 13. b4 {[%emt 0:00:42]} Bb6 {[%emt 0:10:37]} 14. b5 {[%emt 0:00:33]} Ne7 {[%emt 0:04:43]} 15. g4 {[%emt 0:00:19]} O-O {[%emt 0:08:26]} 16. Bd3 {[%emt 0:03:42]} f6 {[%emt 0:01:10]} 17. e4 {[%emt 0:04:19]} Rad8 {[%emt 0:04:05]} 18. O-O {[%emt 0:08:24]} e5 {[%emt 0:08:30]} 19. exd5 {[%emt 0:02:09]} Nxd5 {[%emt 0:00:07]} 20. c4 {[%emt 0:11:25]} Nb4 {[%emt 0:04:31]} 21. Be4 {[%emt 0:04:14]} Bxg4 {[%emt 0:00:09]} 22. Ra4 {[%emt 0:03:59]} Nd3 {[%emt 0:00:25]} 23. Bd5+ {[%emt 0:07:52]} Kh7 {[%emt 0:01:59]} 24. b4 {[%emt 0:00:10]} f5 {[%emt 0:00:51]} 25. Bxb7 {[%emt 0:07:01]} Bxf3 {[%emt 0:00:06]} 26. Bxf3 {[%emt 0:11:53]} Nb2 {[%emt 0:00:51]} 27. Ra6 {[%emt 0:00:12]} Rxd2 {[%emt 0:02:55]} 28. c5 {[%emt 0:01:19]} e4 {[%emt 0:08:17]} 29. cxb6 {[%emt 0:00:05]} axb6 {[%emt 0:00:04]} 30. Bh5 {[%emt 0:00:14]} Nd3 {[%emt 0:01:23]} 31. Rxb6 {[%emt 0:00:30]} Nf4 {[%emt 0:00:02]} 32. Rd1 {[%emt 0:02:40]} Rb2 {[%emt 0:00:37]} 33. g4 {[%emt 0:00:23]} Nh3+ {[%emt 0:00:22]} 34. Kg2 {[%emt 0:00:14]} Nxf2 {[%emt 0:00:47]} 35. Bg6+ {[%emt 0:00:11]} Kg8 {[%emt 0:00:34]} 36. Rd7 {[%emt 0:00:14]} Nxg4+ {[%emt 0:00:42]} 37. Kg1 {[%emt 0:00:24]} Ne5 {[%emt 0:00:32]} 38. Rc7 {[%emt 0:00:23]} Nf3+ {[%emt 0:00:23]} 39. Kf1 {[%emt 0:00:20]} e3 {[%emt 0:00:21]} 40. Re6 {[%emt 0:00:24]} Rf2# {Bh5} 0-1

[Event "90th GER-ch 2019"]
[Site "Magdeburg"]
[Date "2019.05.27"]
[Round "2.3"]
[White "Krastev, Alexander"]
[Black "Kollars, Dmitrij"]
[Result "0-1"]
[ECO "A06"]
[WhiteElo "2344"]
[BlackElo "2561"]
[Annotator "RC"]
[PlyCount "74"]
[EventDate "2019.05.26"]
[EventType "tourn"]
[EventCountry "GER"]
[SourceTitle "playchess.com"]
[Source "ChessBase"]
[SourceQuality "1"]
[TimeControl "40/5400+30:1800+30"]

1. g3 {[%emt 0:00:00]} d5 {[%emt 0:00:38]} 2. Nf3 {[%emt 0:00:00]} Bg4 {[%emt 0:00:18]} 3. Bg2 {[%emt 0:00:05]} Nd7 {[%emt 0:00:14]} 4. d3 {[%emt 0:00:31]} Ngf6 {[%emt 0:01:02]} 5. O-O {[%emt 0:00:19]} e5 {[%emt 0:01:14]} 6. Qe1 {[%emt 0:06:54]} Bd6 {[%emt 0:00:26]} 7. e4 {[%emt 0:00:21]} O-O {[%emt 0:00:20]} 8. Nc3 {[%emt 0:03:20]} c6 {[%emt 0:05:09]} 9. h3 {[%emt 0:00:32]} Bxf3 {[%emt 0:06:50]} 10. Bxf3 {[%emt 0:00:16]} dxe4 {[%emt 0:00:39]} 11. dxe4 {[%emt 0:02:13]} Nc5 {[%emt 0:01:46]} 12. Be3 {[%emt 0:02:12]} Ne6 {[%emt 0:01:51]} 13. Rd1 {[%emt 0:05:26]} Qe7 {[%emt 0:00:24]} 14. Nb1 {[%emt 0:07:25]} Bc5 {[%emt 0:03:37]} 15. c3 {[%emt 0:00:48]} Rfd8 {[%emt 0:03:53]} 16. Bc1 {[%emt 0:05:42]} a5 {[%emt 0:06:55]} 17. Qe2 {[%emt 0:04:15]} a4 {[%emt 0:04:02]} 18. Bg2 {[%emt 0:03:01]} b5 {[%emt 0:06:09]} 19. Nd2 {[%emt 0:10:38]} Bb6 {[%emt 0:07:02]} 20. Nf3 {[%emt 0:04:50]} Nc5 {[%emt 0:00:37]} 21. Nh4 {[%emt 0:00:52]} Qe6 {[%emt 0:02:49]} 22. Nf5 {[%emt 0:08:35]} g6 {[%emt 0:05:59]} 23. Nh6+ {[%emt 0:00:46]} Kg7 {[%emt 0:00:21]} 24. Bg5 {[%emt 0:01:30]} Rxd1 {[%emt 0:05:39]} 25. Rxd1 {[%emt 0:00:57]} Rd8 {[%emt 0:01:44]} 26. Rxd8 {[%emt 0:05:22]} Bxd8 {[%emt 0:00:03]} 27. Ng4 {[%emt 0:00:20]} h5 {[%emt 0:06:29]} 28. Nxf6 {[%emt 0:00:40]} Bxf6 {[%emt 0:00:05]} 29. Be3 {[%emt 0:00:23]} Nb7 {[%emt 0:02:25]} 30. a3 {[%emt 0:04:28]} Be7 {[%emt 0:00:47]} 31. Qc2 {[%emt 0:12:04]} h4 {[%emt 0:06:53]} 32. g4 {[%emt 0:07:07]} Qa2 {[%emt 0:02:54]} 33. Qc1 {[%emt 0:02:20]} Na5 {[%emt 0:03:14]} 34. Bf1 {[%emt 0:02:15]} Nb3 {[%emt 0:00:06]} 35. Qc2 {[%emt 0:00:32]} Bxa3 {[%emt 0:00:45]} 36. Bg5 {[%emt 0:00:29]} Qxb2 {[%emt 0:01:15]} 37. Qd3 {[%emt 0:00:30]} Bc5 0-1

[Event "90th GER-ch 2019"]
[Site "Magdeburg"]
[Date "2019.05.27"]
[Round "2.4"]
[White "Svane, Frederik"]
[Black "Engel, Luis"]
[Result "0-1"]
[ECO "B51"]
[WhiteElo "2342"]
[BlackElo "2512"]
[Annotator "ChessBase"]
[PlyCount "58"]
[EventDate "2019.05.26"]
[EventType "tourn"]
[EventCountry "GER"]
[SourceTitle "playchess.com"]
[Source "ChessBase"]
[SourceQuality "1"]
[TimeControl "40/5400+30:1800+30"]

1. e4 {[%emt 0:00:00]} c5 {[%emt 0:00:00]} 2. Nf3 {[%emt 0:00:00]} d6 {[%emt 0:00:00]} 3. Bb5+ {[%emt 0:00:01]} Nd7 {[%emt 0:00:58]} 4. O-O {[%emt 0:00:20]} a6 {[%emt 0:00:02]} 5. Bd3 {[%emt 0:00:12]} Ngf6 {[%emt 0:00:06]} 6. Re1 {[%emt 0:00:35]} e6 {[%emt 0:01:18]} 7. c3 {[%emt 0:00:20]} b5 {[%emt 0:00:28]} 8. a4 {[%emt 0:01:08]} c4 {[%emt 0:00:55]} 9. Bf1 {[%emt 0:00:16]} Bb7 {[%emt 0:00:43]} 10. axb5 {[%emt 0:00:09]} axb5 {[%emt 0:00:05]} 11. Rxa8 {[%emt 0:00:07]} Bxa8 {[%emt 0:13:59]} 12. d3 {[%emt 0:01:08]} Be7 {[%emt 0:05:25]} 13. Na3 {[%emt 0:00:44]} O-O {[%emt 0:06:10]} 14. b4 {[%emt 0:08:08]} Qb8 {[%emt 0:09:20]} 15. dxc4 {[%emt 0:01:52]} bxc4 {[%emt 0:00:39]} 16. Nd2 {[%emt 0:04:12]} d5 {[%emt 0:01:33]} 17. exd5 {[%emt 0:01:25]} Nxd5 {[%emt 0:02:39]} 18. Qc2 {[%emt 0:25:26]} Bf6 {[%emt 0:08:53]} 19. Bb2 {[%emt 0:05:45]} Ne5 {[%emt 0:03:55]} 20. Naxc4 {[%emt 0:18:36]} Rc8 {[%emt 0:01:51]} 21. h3 {[%emt 0:14:38]} Nf4 {[%emt 0:04:49]} 22. Ne3 {[%emt 0:13:49]} Rd8 {[%emt 0:01:36]} 23. Be2 {[%emt 0:01:49]} Qb7 {[%emt 0:04:44]} 24. Nf3 {[%emt 0:00:07]} Nxg2 {[%emt 0:01:14]} 25. Nxg2 {[%emt 0:01:09]} Nxf3+ {[%emt 0:00:07]} 26. Bxf3 {[%emt 0:00:28]} Qxf3 {[%emt 0:00:06]} 27. Kf1 {[%emt 0:00:08]} Qxg2+ {[%emt 0:00:09]} 28. Ke2 {[%emt 0:00:04]} Bf3+ {[%emt 0:00:09]} 29. Ke3 {[%emt 0:00:04]} Bg5# {Kd4} 0-1

[Event "90th GER-ch 2019"]
[Site "Magdeburg"]
[Date "2019.05.27"]
[Round "2.5"]
[White "Krassowizkij, Jaroslaw"]
[Black "Trifan, Andrei Ioan"]
[Result "1-0"]
[ECO "E69"]
[WhiteElo "2450"]
[BlackElo "2268"]
[Annotator "RC"]
[PlyCount "83"]
[EventDate "2019.05.26"]
[EventType "tourn"]
[EventCountry "GER"]
[SourceTitle "playchess.com"]
[Source "ChessBase"]
[SourceQuality "1"]
[TimeControl "40/5400+30:1800+30"]

1. d4 {[%emt 0:00:00]} Nf6 {[%emt 0:00:20]} 2. c4 {[%emt 0:00:00]} g6 {[%emt 0:00:31]} 3. g3 {[%emt 0:00:00]} Bg7 {[%emt 0:01:15]} 4. Bg2 {[%emt 0:00:33]} O-O {[%emt 0:00:50]} 5. Nc3 {[%emt 0:00:14]} d6 {[%emt 0:02:09]} 6. Nf3 {[%emt 0:00:16]} Nbd7 {[%emt 0:01:08]} 7. O-O {[%emt 0:01:14]} e5 {[%emt 0:01:55]} 8. e4 {[%emt 0:00:27]} c6 {[%emt 0:00:45]} 9. h3 {[%emt 0:00:21]} Qb6 {[%emt 0:04:06]} 10. Re1 {[%emt 0:01:09]} exd4 {[%emt 0:02:00]} 11. Nxd4 {[%emt 0:00:07]} Ng4 {[%emt 0:00:16]} 12. Nce2 {[%emt 0:14:13]} Nge5 {[%emt 0:01:40]} 13. b3 {[%emt 0:00:13]} Nc5 {[%emt 0:01:38]} 14. Be3 {[%emt 0:01:41]} a5 {[%emt 0:01:26]} 15. Rb1 {[%emt 0:08:19]} Re8 {[%emt 0:03:37]} 16. Nc2 {[%emt 0:09:08]} Qc7 {[%emt 0:10:23]} 17. Ned4 {[%emt 0:01:37]} Ned7 {[%emt 0:08:03]} 18. f3 {[%emt 0:04:33]} Nf6 {[%emt 0:04:12]} 19. Bf2 {[%emt 0:02:42]} Bd7 {[%emt 0:04:30]} 20. Qd2 {[%emt 0:02:13]} Rad8 {[%emt 0:05:53]} 21. a3 {[%emt 0:03:41]} Bc8 {[%emt 0:10:31]} 22. b4 {[%emt 0:04:32]} axb4 {[%emt 0:04:04]} 23. axb4 {[%emt 0:00:21]} Ncd7 {[%emt 0:00:51]} 24. Ne3 {[%emt 0:12:10]} Ne5 {[%emt 0:07:55]} 25. f4 {[%emt 0:07:19]} Qe7 {[%emt 0:07:51]} 26. fxe5 {[%emt 0:03:27]} dxe5 {[%emt 0:00:18]} 27. Nd5 {[%emt 0:00:04]} cxd5 {[%emt 0:02:00]} 28. exd5 {[%emt 0:00:04]} Qc7 {[%emt 0:01:31]} 29. c5 {[%emt 0:07:36]} exd4 {[%emt 0:02:11]} 30. d6 {[%emt 0:00:04]} Qd7 {[%emt 0:01:02]} 31. Bxd4 {[%emt 0:00:08]} b6 {[%emt 0:06:35]} 32. Bxf6 {[%emt 0:04:49]} Bxf6 {[%emt 0:00:03]} 33. c6 {[%emt 0:01:55]} Rxe1+ {[%emt 0:01:28]} 34. Rxe1 {[%emt 0:00:05]} Qa7 {[%emt 0:01:17]} 35. Qf4 {[%emt 0:05:12]} b5+ {[%emt 0:00:59]} 36. Kh2 {[%emt 0:00:30]} Qd4 {[%emt 0:01:44]} 37. Qxd4 {[%emt 0:00:05]} Bxd4 {[%emt 0:00:02]} 38. c7 {[%emt 0:00:06]} Rf8 {[%emt 0:01:04]} 39. Bc6 {[%emt 0:00:37]} Bc3 {[%emt 0:00:04]} 40. Re2 {[%emt 0:02:26]} Kg7 {[%emt 0:01:12]} 41. d7 {[%emt 0:30:32]} Bf6 {[%emt 0:30:18]} 42. Re8 {[%emt 0:00:32]} 1-0

[Event "90th GER-ch 2019"]
[Site "Magdeburg"]
[Date "2019.05.27"]
[Round "2.8"]
[White "Stern, Rene"]
[Black "Rosner, Jonas"]
[Result "0-1"]
[ECO "D53"]
[WhiteElo "2538"]
[BlackElo "2413"]
[Annotator "RC"]
[PlyCount "94"]
[EventDate "2019.05.26"]
[EventType "tourn"]
[EventCountry "GER"]
[SourceTitle "playchess.com"]
[Source "ChessBase"]
[SourceQuality "1"]
[TimeControl "40/5400+30:1800+30"]

1. d4 {[%emt 0:00:00]} d5 {[%emt 0:00:00]} 2. c4 {[%emt 0:00:00]} e6 {[%emt 0:00:00]} 3. Nc3 {[%emt 0:00:00]} Nf6 {[%emt 0:00:00]} 4. Bg5 {[%emt 0:00:00]} Be7 {[%emt 0:00:50]} 5. e3 {[%emt 0:00:12]} Nbd7 {[%emt 0:00:59]} 6. Nf3 {[%emt 0:00:07]} h6 {[%emt 0:00:38]} 7. Bh4 {[%emt 0:00:06]} O-O {[%emt 0:00:27]} 8. Rc1 {[%emt 0:00:05]} c5 {[%emt 0:00:46]} 9. dxc5 {[%emt 0:00:11]} dxc4 {[%emt 0:00:37]} 10. c6 {[%emt 0:00:07]} bxc6 {[%emt 0:00:11]} 11. Bxc4 {[%emt 0:00:07]} Nb6 {[%emt 0:00:28]} 12. Qxd8 {[%emt 0:00:08]} Rxd8 {[%emt 0:00:25]} 13. Be2 {[%emt 0:00:05]} Bb7 {[%emt 0:02:32]} 14. Ne5 {[%emt 0:21:06]} Nbd5 {[%emt 0:17:20]} 15. O-O {[%emt 0:09:10]} c5 {[%emt 0:09:05]} 16. Nxd5 {[%emt 0:13:07]} Bxd5 {[%emt 0:07:15]} 17. Bf3 {[%emt 0:00:52]} g5 {[%emt 0:09:55]} 18. Bxd5 {[%emt 0:03:46]} Rxd5 {[%emt 0:03:59]} 19. Bg3 {[%emt 0:01:08]} Ne4 {[%emt 0:01:39]} 20. Nc4 {[%emt 0:00:24]} Nd2 {[%emt 0:07:31]} 21. Nxd2 {[%emt 0:01:45]} Rxd2 {[%emt 0:00:03]} 22. Be5 {[%emt 0:00:08]} Rad8 {[%emt 0:00:57]} 23. Bc3 {[%emt 0:01:20]} R2d3 {[%emt 0:01:41]} 24. Rfe1 {[%emt 0:04:51]} f5 {[%emt 0:02:42]} 25. Kf1 {[%emt 0:01:29]} Kf7 {[%emt 0:01:00]} 26. e4 {[%emt 0:01:18]} f4 {[%emt 0:05:10]} 27. f3 {[%emt 0:17:07]} h5 {[%emt 0:02:47]} 28. e5 {[%emt 0:01:17]} Kg6 {[%emt 0:03:41]} 29. Re4 {[%emt 0:00:53]} Kf5 {[%emt 0:02:02]} 30. Ke2 {[%emt 0:02:31]} g4 {[%emt 0:07:50]} 31. Re1 {[%emt 0:06:59]} Bh4 {[%emt 0:03:37]} 32. Rf1 {[%emt 0:01:37]} gxf3+ {[%emt 0:01:45]} 33. gxf3 {[%emt 0:00:05]} c4 {[%emt 0:00:33]} 34. Bb4 {[%emt 0:09:28]} Rxf3 {[%emt 0:05:14]} 35. Rxf3 {[%emt 0:00:15]} Kxe4 {[%emt 0:00:02]} 36. Rc3 {[%emt 0:00:27]} Kxe5 {[%emt 0:01:26]} 37. Rxc4 {[%emt 0:02:40]} Kf5 {[%emt 0:00:27]} 38. Bc3 {[%emt 0:01:44]} e5 {[%emt 0:01:23]} 39. Rc7 {[%emt 0:00:23]} Ke4 {[%emt 0:01:08]} 40. Rc4+ {[%emt 0:00:19]} Kf5 {[%emt 0:00:31]} 41. Rc7 {[%emt 0:30:04]} Rg8 {[%emt 0:07:45]} 42. Rh7 {[%emt 0:00:00]} Rg2+ {[%emt 0:03:35]} 43. Kf1 {[%emt 0:00:00]} Rf2+ {[%emt 0:00:46]} 44. Kg1 {[%emt 0:00:00]} Rc2 {[%emt 0:00:58]} 45. h3 {[%emt 0:00:00]} Bg3 {[%emt 0:05:31]} 46. Rxh5+ {[%emt 0:00:00]} Ke4 {[%emt 0:00:17]} 47. Rxe5+ {[%emt 0:00:00]} Kf3 {[%emt 0:00:06]} 0-1

[Event "90th GER-ch 2019"]
[Site "Magdeburg"]
[Date "2019.05.27"]
[Round "2.9"]
[White "Heimrath, Reiner"]
[Black "Becker, Marcel"]
[Result "0-1"]
[ECO "B10"]
[WhiteElo "2239"]
[BlackElo "2308"]
[Annotator "NA"]
[PlyCount "64"]
[EventDate "2019.05.26"]
[EventType "tourn"]
[EventCountry "GER"]
[SourceTitle "playchess.com"]
[Source "ChessBase"]
[SourceQuality "1"]
[TimeControl "40/5400+30:1800+30"]

1. e4 {[%emt 0:00:00]} c6 {[%emt 0:00:00]} 2. d3 {[%emt 0:00:00]} d5 {[%emt 0:00:00]} 3. Nd2 {[%emt 0:00:00]} e5 {[%emt 0:00:22]} 4. Ngf3 {[%emt 0:00:01]} Bd6 {[%emt 0:00:13]} 5. Be2 {[%emt 0:00:39]} Nf6 {[%emt 0:00:22]} 6. O-O {[%emt 0:00:11]} O-O {[%emt 0:00:08]} 7. a4 {[%emt 0:00:52]} a5 {[%emt 0:01:09]} 8. c3 {[%emt 0:02:47]} Re8 {[%emt 0:00:45]} 9. Qc2 {[%emt 0:08:33]} Na6 {[%emt 0:00:55]} 10. Nb3 {[%emt 0:13:00]} h6 {[%emt 0:08:34]} 11. Bd2 {[%emt 0:05:32]} Be6 {[%emt 0:02:25]} 12. c4 {[%emt 0:29:52]} dxe4 {[%emt 0:01:48]} 13. dxe4 {[%emt 0:00:10]} b6 {[%emt 0:01:35]} 14. Rad1 {[%emt 0:01:28]} Qc7 {[%emt 0:02:50]} 15. Bc3 {[%emt 0:00:27]} Bg4 {[%emt 0:04:05]} 16. Nh4 {[%emt 0:09:55]} Bf8 {[%emt 0:13:08]} 17. Bxg4 {[%emt 0:01:11]} Nxg4 {[%emt 0:00:09]} 18. Qd3 {[%emt 0:04:54]} Nf6 {[%emt 0:03:21]} 19. Rde1 {[%emt 0:03:21]} Rad8 {[%emt 0:04:10]} 20. Qf3 {[%emt 0:00:44]} Qc8 {[%emt 0:02:20]} 21. Nf5 {[%emt 0:00:51]} Qe6 {[%emt 0:00:16]} 22. Qe2 {[%emt 0:05:37]} g6 {[%emt 0:00:57]} 23. Ng3 {[%emt 0:01:07]} Nc5 {[%emt 0:00:32]} 24. Nxc5 {[%emt 0:00:21]} Bxc5 {[%emt 0:00:13]} 25. Rd1 {[%emt 0:02:07]} h5 {[%emt 0:02:21]} 26. Rd3 {[%emt 0:03:31]} h4 {[%emt 0:01:45]} 27. Nh1 {[%emt 0:00:11]} Qxc4 {[%emt 0:00:52]} 28. Rfd1 {[%emt 0:01:20]} Rxd3 {[%emt 0:00:42]} 29. Rxd3 {[%emt 0:00:04]} Qxe4 {[%emt 0:00:25]} 30. Qd1 {[%emt 0:00:12]} Nd5 {[%emt 0:00:40]} 31. Kf1 {[%emt 0:03:59]} Nf4 {[%emt 0:01:10]} 32. Rf3 {[%emt 0:01:50]} Qc4+ {[%emt 0:00:15]} 0-1

[Event "90th GER-ch 2019"]
[Site "Magdeburg"]
[Date "2019.05.27"]
[Round "2.12"]
[White "Pajeken, Jakob Leon"]
[Black "Schulz, Karsten"]
[Result "1/2-1/2"]
[ECO "B07"]
[WhiteElo "2359"]
[BlackElo "2227"]
[Annotator "NA"]
[PlyCount "80"]
[EventDate "2019.05.26"]
[EventType "tourn"]
[EventCountry "GER"]
[SourceTitle "playchess.com"]
[Source "ChessBase"]
[SourceQuality "1"]
[TimeControl "40/5400+30:1800+30"]

1. e4 {[%emt 0:00:00]} d6 {[%emt 0:00:00]} 2. d4 {[%emt 0:00:00]} Nf6 {[%emt 0:00:00]} 3. Nc3 {[%emt 0:00:00]} e5 {[%emt 0:00:00]} 4. Nf3 {[%emt 0:00:00]} exd4 {[%emt 0:00:00]} 5. Nxd4 {[%emt 0:00:00]} Be7 {[%emt 0:00:04]} 6. g3 {[%emt 0:00:00]} O-O {[%emt 0:00:10]} 7. Bg2 {[%emt 0:00:05]} Re8 {[%emt 0:01:10]} 8. O-O {[%emt 0:00:14]} Nbd7 {[%emt 0:01:27]} 9. h3 {[%emt 0:03:45]} Bf8 {[%emt 0:02:40]} 10. g4 {[%emt 0:03:28]} Nc5 {[%emt 0:02:21]} 11. Re1 {[%emt 0:01:37]} c6 {[%emt 0:00:40]} 12. Bf4 {[%emt 0:03:24]} a5 {[%emt 0:02:31]} 13. a4 {[%emt 0:00:33]} Ne6 {[%emt 0:10:43]} 14. Bg3 {[%emt 0:00:23]} Qb6 {[%emt 0:03:27]} 15. Nxe6 {[%emt 0:13:31]} Bxe6 {[%emt 0:02:10]} 16. Qd2 {[%emt 0:02:38]} Rad8 {[%emt 0:03:05]} 17. Kh2 {[%emt 0:10:00]} d5 {[%emt 0:13:14]} 18. exd5 {[%emt 0:03:45]} Nxd5 {[%emt 0:03:42]} 19. Nxd5 {[%emt 0:02:41]} Bxd5 {[%emt 0:00:10]} 20. Rxe8 {[%emt 0:04:29]} Rxe8 {[%emt 0:01:54]} 21. Bxd5 {[%emt 0:00:24]} cxd5 {[%emt 0:00:03]} 22. b3 {[%emt 0:01:01]} Bd6 {[%emt 0:01:41]} 23. Re1 {[%emt 0:02:04]} Bxg3+ {[%emt 0:01:49]} 24. Kxg3 {[%emt 0:00:32]} Qc7+ {[%emt 0:01:06]} 25. Kg2 {[%emt 0:00:34]} Rxe1 {[%emt 0:00:31]} 26. Qxe1 {[%emt 0:00:05]} h6 {[%emt 0:01:14]} 27. Qd2 {[%emt 0:01:17]} Qc5 {[%emt 0:01:35]} 28. Qd3 {[%emt 0:01:19]} b6 {[%emt 0:01:20]} 29. Kf3 {[%emt 0:02:41]} Qd6 {[%emt 0:05:25]} 30. Ke2 {[%emt 0:02:39]} Qc5 {[%emt 0:03:18]} 31. Kf1 {[%emt 0:01:31]} Qc6 {[%emt 0:02:05]} 32. h4 {[%emt 0:03:00]} Qe6 {[%emt 0:02:42]} 33. Qd4 {[%emt 0:01:46]} Qc6 {[%emt 0:02:16]} 34. Qd3 {[%emt 0:01:37]} Qe6 {[%emt 0:00:22]} 35. f3 {[%emt 0:02:12]} Qc6 {[%emt 0:04:12]} 36. h5 {[%emt 0:01:19]} Qe6 {[%emt 0:00:40]} 37. Kg2 {[%emt 0:02:21]} Qe5 {[%emt 0:04:14]} 38. Kf1 {[%emt 0:01:50]} Qe6 {[%emt 0:00:32]} 39. Qc3 {[%emt 0:01:44]} f5 {[%emt 0:08:36]} 40. Qc7 {[%emt 0:04:26]} fxg4 {[%emt 0:03:27]} 1/2-1/2

[Event "90th GER-ch 2019"]
[Site "Magdeburg"]
[Date "2019.05.27"]
[Round "2.14"]
[White "Adiyaman, Rene"]
[Black "Gungl, Theo"]
[Result "0-1"]
[ECO "B20"]
[WhiteElo "2175"]
[BlackElo "2331"]
[Annotator "NA"]
[PlyCount "50"]
[EventDate "2019.05.26"]
[EventType "tourn"]
[EventCountry "GER"]
[SourceTitle "playchess.com"]
[Source "ChessBase"]
[SourceQuality "1"]
[TimeControl "40/5400+30:1800+30"]

1. e4 c5 2. b3 d6 3. Bb2 Nc6 4. Nc3 Nf6 5. f4 g6 6. Nf3 Bg7 7. Qe2 O-O 8. O-O-O a6 9. Kb1 Rb8 10. e5 dxe5 11. fxe5 Ng4 12. Na4 Qc7 13. h3 Ngxe5 14. Nxe5 Bxe5 15. Bxe5 Nxe5 16. Nxc5 Qxc5 17. d4 Qc6 18. dxe5 Bf5 19. Rh2 Rfd8 20. Rxd8+ Rxd8 21. g4 Be4 22. Bg2 Rd4 23. h4 Qd5 24. Bxe4 Rxe4 25. Qf3 Re1+ 0-1